[Event "Early-Titled-Tuesday-Blitz-February-06-2024"]
[Site "Chess.com"]
[Date "2024.02.06"]
[Round "6"]
[White "RobertJFischer71"]
[Black "snowlord"]
[Result "1-0"]
[WhiteElo "2585"]
[BlackElo "2854"]
[TimeControl "180+1"]
[EndTime "9:07:16 PST"]
[Termination "RobertJFischer71 won on time"]

1. e4 {[%clk 0:03:00.9]} 1... Nf6 {[%clk 0:02:59]} 2. e5 {[%clk 0:03:00.6]} 2...
Nd5 {[%clk 0:02:59.2]} 3. d4 {[%clk 0:03:01.3]} 3... d6 {[%clk 0:02:59.6]} 4.
Nf3 {[%clk 0:03:01.3]} 4... Bg4 {[%clk 0:02:59.4]} 5. Be2 {[%clk 0:03:00.9]}
5... c6 {[%clk 0:02:59.6]} 6. O-O {[%clk 0:03:00.1]} 6... Bxf3 {[%clk
0:02:59.7]} 7. Bxf3 {[%clk 0:03:00.2]} 7... dxe5 {[%clk 0:03:00.5]} 8. dxe5
{[%clk 0:03:01.1]} 8... e6 {[%clk 0:03:01.1]} 9. c4 {[%clk 0:02:59.5]} 9... Ne7
{[%clk 0:03:01.1]} 10. Qe2 {[%clk 0:02:57.1]} 10... Nd7 {[%clk 0:02:58.6]} 11.
Bg5 {[%clk 0:02:51.4]} 11... Qc7 {[%clk 0:02:57.4]} 12. Bxe7 {[%clk 0:02:50.5]}
12... Bxe7 {[%clk 0:02:57.2]} 13. Re1 {[%clk 0:02:45.3]} 13... Bc5 {[%clk
0:02:36.7]} 14. Nc3 {[%clk 0:02:21.7]} 14... Bd4 {[%clk 0:02:06.5]} 15. Rad1
{[%clk 0:02:12.7]} 15... Bxe5 {[%clk 0:02:06.4]} 16. Rxd7 {[%clk 0:02:13]} 16...
Bxh2+ {[%clk 0:02:06.3]} 17. Kh1 {[%clk 0:02:13.8]} 17... Kxd7 {[%clk
0:02:06.5]} 18. g3 {[%clk 0:02:08.4]} 18... Bxg3 {[%clk 0:02:05.7]} 19. fxg3
{[%clk 0:02:09]} 19... Qxg3 {[%clk 0:02:06.3]} 20. Ne4 {[%clk 0:02:09.7]} 20...
Qh4+ {[%clk 0:01:59.1]} 21. Kg2 {[%clk 0:02:09.8]} 21... Rad8 {[%clk 0:01:44.5]}
22. Rh1 {[%clk 0:01:57.1]} 22... Qf4 {[%clk 0:01:35.6]} 23. Qf2 {[%clk
0:01:43.1]} 23... b6 {[%clk 0:01:11.1]} 24. c5 {[%clk 0:01:28.7]} 24... Kc7
{[%clk 0:00:46.7]} 25. Qf1 {[%clk 0:01:13.9]} 25... Rd2+ {[%clk 0:00:33.4]} 26.
Nxd2 {[%clk 0:01:11.9]} 26... Qxd2+ {[%clk 0:00:34.3]} 27. Qf2 {[%clk
0:01:11.3]} 27... Qg5+ {[%clk 0:00:26.6]} 28. Qg3+ {[%clk 0:01:11.4]} 28...
Qxg3+ {[%clk 0:00:26.9]} 29. Kxg3 {[%clk 0:01:12.3]} 29... bxc5 {[%clk 0:00:20]}
30. Rc1 {[%clk 0:01:12.7]} 30... Rd8 {[%clk 0:00:15.7]} 31. Rxc5 {[%clk
0:01:12.1]} 31... Rd6 {[%clk 0:00:16.4]} 32. b4 {[%clk 0:01:10.4]} 32... Kd7
{[%clk 0:00:16.2]} 33. Ra5 {[%clk 0:01:09.7]} 33... e5 {[%clk 0:00:10.7]} 34.
Rxa7+ {[%clk 0:01:09.6]} 34... Ke6 {[%clk 0:00:11.4]} 35. Rc7 {[%clk 0:01:07.5]}
35... Rd3 {[%clk 0:00:11.1]} 36. Rxc6+ {[%clk 0:01:06.5]} 36... Kf5 {[%clk
0:00:11.7]} 37. b5 {[%clk 0:00:43.3]} 37... g5 {[%clk 0:00:10.8]} 38. b6 {[%clk
0:00:42.3]} 38... e4 {[%clk 0:00:01.2]} 39. b7 {[%clk 0:00:42]} 1-0

[Event "Early-Titled-Tuesday-Blitz-February-06-2024"]
[Site "Chess.com"]
[Date "2024.02.06"]
[Round "6"]
[White "yuriydovzik"]
[Black "SujanaLohani"]
[Result "1-0"]
[WhiteElo "2215"]
[BlackElo "1981"]
[TimeControl "180+1"]
[EndTime "9:07:16 PST"]
[Termination "yuriydovzik won on time"]

1. Nf3 {[%clk 0:03:00.2]} 1... c5 {[%clk 0:02:59.1]} 2. e3 {[%clk 0:02:57.7]}
2... d5 {[%clk 0:02:58.5]} 3. d4 {[%clk 0:02:56.7]} 3... cxd4 {[%clk 0:02:58.2]}
4. exd4 {[%clk 0:02:55.3]} 4... Nc6 {[%clk 0:02:58.3]} 5. Bd3 {[%clk 0:02:48.2]}
5... Nf6 {[%clk 0:02:58.2]} 6. c3 {[%clk 0:02:47.6]} 6... Bg4 {[%clk 0:02:57.3]}
7. O-O {[%clk 0:02:41.1]} 7... e6 {[%clk 0:02:57.1]} 8. h3 {[%clk 0:02:37.5]}
8... Bh5 {[%clk 0:02:56.6]} 9. g4 {[%clk 0:02:25.5]} 9... Bg6 {[%clk 0:02:54.1]}
10. Ne5 {[%clk 0:02:14.6]} 10... Bd6 {[%clk 0:02:43]} 11. f4 {[%clk 0:02:12.3]}
11... Bxd3 {[%clk 0:02:33.7]} 12. Qxd3 {[%clk 0:02:10.9]} 12... h5 {[%clk
0:02:31.5]} 13. g5 {[%clk 0:01:58.4]} 13... Ne4 {[%clk 0:02:31.3]} 14. Nd2
{[%clk 0:01:55.2]} 14... Nxd2 {[%clk 0:02:13.9]} 15. Bxd2 {[%clk 0:01:54.3]}
15... Qc7 {[%clk 0:02:09.9]} 16. g6 {[%clk 0:01:50.2]} 16... f6 {[%clk
0:01:48.4]} 17. Nf7 {[%clk 0:01:48.9]} 17... Kd7 {[%clk 0:01:22]} 18. Nxh8
{[%clk 0:01:41.2]} 18... Rxh8 {[%clk 0:01:20.8]} 19. f5 {[%clk 0:01:34.2]} 19...
e5 {[%clk 0:01:20.2]} 20. dxe5 {[%clk 0:01:30.7]} 20... Nxe5 {[%clk 0:01:10.9]}
21. Qxd5 {[%clk 0:01:27.9]} 21... Qb6+ {[%clk 0:00:44.9]} 22. Kh1 {[%clk
0:01:14.5]} 22... Ng4 {[%clk 0:00:29.1]} 23. Bf4 {[%clk 0:00:55.3]} 23... Ne5
{[%clk 0:00:07]} 24. Bxe5 {[%clk 0:00:51.3]} 24... fxe5 {[%clk 0:00:06.9]} 25.
Rad1 {[%clk 0:00:45.5]} 25... Rf8 {[%clk 0:00:04.2]} 26. Qxe5 {[%clk 0:00:38.7]}
26... Rf6 {[%clk 0:00:03.7]} 27. Qd4 {[%clk 0:00:30.5]} 27... Qxb2 {[%clk
0:00:02.9]} 28. Rd2 {[%clk 0:00:26.2]} 28... Qb5 {[%clk 0:00:01.6]} 29. Rfd1
{[%clk 0:00:21.4]} 1-0

[Event "Early-Titled-Tuesday-Blitz-February-06-2024"]
[Site "Chess.com"]
[Date "2024.02.06"]
[Round "6"]
[White "laskakid"]
[Black "IriBu"]
[Result "0-1"]
[WhiteElo "2341"]
[BlackElo "2533"]
[TimeControl "180+1"]
[EndTime "9:07:19 PST"]
[Termination "IriBu won on time"]

1. d4 {[%clk 0:03:00.9]} 1... Nf6 {[%clk 0:02:58.9]} 2. c4 {[%clk 0:03:01.1]}
2... g6 {[%clk 0:02:56.6]} 3. Nc3 {[%clk 0:03:01.1]} 3... Bg7 {[%clk 0:02:57]}
4. Nf3 {[%clk 0:03:01.5]} 4... d5 {[%clk 0:02:55]} 5. Bg5 {[%clk 0:02:59.7]}
5... dxc4 {[%clk 0:02:54.2]} 6. e4 {[%clk 0:02:58.2]} 6... Bg4 {[%clk
0:02:53.2]} 7. Bxc4 {[%clk 0:02:53.7]} 7... Nc6 {[%clk 0:02:52]} 8. d5 {[%clk
0:02:45.8]} 8... Ne5 {[%clk 0:02:49.4]} 9. Qa4+ {[%clk 0:02:33.4]} 9... Bd7
{[%clk 0:02:46]} 10. Bb5 {[%clk 0:02:30.3]} 10... Nxf3+ {[%clk 0:02:40.4]} 11.
gxf3 {[%clk 0:02:30]} 11... Bxb5 {[%clk 0:02:29.8]} 12. Qxb5+ {[%clk 0:02:27.6]}
12... Nd7 {[%clk 0:02:29.7]} 13. O-O-O {[%clk 0:01:50.8]} 13... O-O {[%clk
0:02:22.1]} 14. h4 {[%clk 0:01:49.5]} 14... h5 {[%clk 0:02:21]} 15. Rhg1 {[%clk
0:01:39.8]} 15... a6 {[%clk 0:02:01.6]} 16. Qb4 {[%clk 0:01:35.7]} 16... Re8
{[%clk 0:01:57.6]} 17. Kb1 {[%clk 0:01:34.5]} 17... Ne5 {[%clk 0:01:42.8]} 18.
Rg3 {[%clk 0:01:28.8]} 18... Qd6 {[%clk 0:01:39.9]} 19. Qb3 {[%clk 0:01:18.6]}
19... b5 {[%clk 0:01:31.2]} 20. f4 {[%clk 0:01:12]} 20... Nc4 {[%clk 0:01:23.9]}
21. f5 {[%clk 0:01:00.8]} 21... Kh7 {[%clk 0:01:10.8]} 22. fxg6+ {[%clk
0:00:58.7]} 22... fxg6 {[%clk 0:01:10.6]} 23. f4 {[%clk 0:00:38.8]} 23... Qc5
{[%clk 0:01:06.1]} 24. f5 {[%clk 0:00:34.6]} 24... gxf5 {[%clk 0:01:00.3]} 25.
exf5 {[%clk 0:00:30.5]} 25... Qf2 {[%clk 0:00:59]} 26. Rdg1 {[%clk 0:00:20.5]}
26... Qxf5+ {[%clk 0:00:50.6]} 27. Ka1 {[%clk 0:00:12.2]} 27... Rg8 {[%clk
0:00:44.9]} 28. Bxe7 {[%clk 0:00:10.9]} 28... Bxc3 {[%clk 0:00:40.4]} 29. Qxc3
{[%clk 0:00:09.2]} 29... Rg4 {[%clk 0:00:24]} 30. Rxg4 {[%clk 0:00:06]} 30...
hxg4 {[%clk 0:00:24.9]} 31. Qd4 {[%clk 0:00:04.5]} 31... Re8 {[%clk 0:00:22.6]}
32. Bf6 {[%clk 0:00:01.9]} 32... Re4 {[%clk 0:00:21.7]} 33. Qc3 {[%clk
0:00:01.3]} 33... Rf4 {[%clk 0:00:21.4]} 34. Bh8 {[%clk 0:00:01.3]} 34... Rf1+
{[%clk 0:00:21.4]} 0-1

[Event "Early-Titled-Tuesday-Blitz-February-06-2024"]
[Site "Chess.com"]
[Date "2024.02.06"]
[Round "6"]
[White "ChessSG1"]
[Black "yaguigor"]
[Result "0-1"]
[WhiteElo "2427"]
[BlackElo "2745"]
[TimeControl "180+1"]
[EndTime "9:07:21 PST"]
[Termination "yaguigor won on time"]

1. c4 {[%clk 0:03:00.9]} 1... c6 {[%clk 0:02:58.6]} 2. g3 {[%clk 0:02:59.9]}
2... d5 {[%clk 0:02:59.1]} 3. Nf3 {[%clk 0:03:00.2]} 3... Nf6 {[%clk 0:02:57.2]}
4. Bg2 {[%clk 0:03:00.4]} 4... Bg4 {[%clk 0:02:56.4]} 5. Qb3 {[%clk 0:02:44.9]}
5... Qb6 {[%clk 0:02:50.3]} 6. cxd5 {[%clk 0:02:44.1]} 6... Qxb3 {[%clk
0:02:37.8]} 7. axb3 {[%clk 0:02:45]} 7... Nxd5 {[%clk 0:02:36.1]} 8. O-O {[%clk
0:02:42.2]} 8... Nd7 {[%clk 0:02:32.5]} 9. Nc3 {[%clk 0:02:40.5]} 9... Nb4
{[%clk 0:02:30]} 10. d3 {[%clk 0:02:30.1]} 10... e5 {[%clk 0:02:28.3]} 11. Nd2
{[%clk 0:02:06.3]} 11... Nc5 {[%clk 0:02:21.8]} 12. Rb1 {[%clk 0:01:23.6]} 12...
Be6 {[%clk 0:02:17.4]} 13. Nc4 {[%clk 0:01:22.1]} 13... f6 {[%clk 0:02:12]} 14.
f4 {[%clk 0:01:14.6]} 14... Nxb3 {[%clk 0:01:49.1]} 15. fxe5 {[%clk 0:01:11.9]}
15... Nxc1 {[%clk 0:01:46.1]} 16. Rbxc1 {[%clk 0:01:05.4]} 16... Bxc4 {[%clk
0:01:29.9]} 17. dxc4 {[%clk 0:01:06.3]} 17... fxe5 {[%clk 0:01:20.2]} 18. Ne4
{[%clk 0:00:58.7]} 18... O-O-O {[%clk 0:01:12.4]} 19. Rf5 {[%clk 0:00:52.8]}
19... Re8 {[%clk 0:01:11.4]} 20. Bh3 {[%clk 0:00:51.3]} 20... Kb8 {[%clk
0:01:08.3]} 21. Rf7 {[%clk 0:00:46.8]} 21... Re7 {[%clk 0:01:03.5]} 22. Rcf1
{[%clk 0:00:42.8]} 22... Rxf7 {[%clk 0:01:02.2]} 23. Rxf7 {[%clk 0:00:43.7]}
23... h6 {[%clk 0:00:55.5]} 24. c5 {[%clk 0:00:34.9]} 24... Na6 {[%clk
0:00:52.6]} 25. b4 {[%clk 0:00:20.5]} 25... Nxb4 {[%clk 0:00:52.4]} 26. Nd6
{[%clk 0:00:20.7]} 26... Bxd6 {[%clk 0:00:52.1]} 27. cxd6 {[%clk 0:00:21.6]}
27... g5 {[%clk 0:00:45.8]} 28. Re7 {[%clk 0:00:14.3]} 28... Rd8 {[%clk
0:00:43.4]} 29. d7 {[%clk 0:00:14.3]} 29... Kc7 {[%clk 0:00:40.8]} 30. Rxe5
{[%clk 0:00:14.3]} 30... Nd5 {[%clk 0:00:36.1]} 31. Be6 {[%clk 0:00:07]} 31...
Nb6 {[%clk 0:00:31.6]} 32. Rf5 {[%clk 0:00:04.8]} 32... Nxd7 {[%clk 0:00:30.8]}
33. Rf7 {[%clk 0:00:04.1]} 33... b5 {[%clk 0:00:30.2]} 34. Rh7 {[%clk
0:00:03.8]} 34... a5 {[%clk 0:00:27.7]} 35. Rxh6 {[%clk 0:00:03.6]} 35... a4
{[%clk 0:00:27.9]} 0-1

[Event "Early-Titled-Tuesday-Blitz-February-06-2024"]
[Site "Chess.com"]
[Date "2024.02.06"]
[Round "6"]
[White "Gryffindorac8"]
[Black "Aariow"]
[Result "1-0"]
[WhiteElo "2371"]
[BlackElo "2488"]
[TimeControl "180+1"]
[EndTime "9:07:22 PST"]
[Termination "Gryffindorac8 won on time"]

1. d4 {[%clk 0:03:00.9]} 1... d5 {[%clk 0:02:43.3]} 2. c4 {[%clk 0:03:00.1]}
2... e6 {[%clk 0:02:43.6]} 3. Nf3 {[%clk 0:03:00.2]} 3... Nf6 {[%clk 0:02:44.3]}
4. g3 {[%clk 0:03:00.5]} 4... Be7 {[%clk 0:02:45.1]} 5. Bg2 {[%clk 0:03:00.9]}
5... O-O {[%clk 0:02:46]} 6. O-O {[%clk 0:03:01.2]} 6... c6 {[%clk 0:02:46.8]}
7. Qc2 {[%clk 0:03:00.9]} 7... b6 {[%clk 0:02:47.7]} 8. Nbd2 {[%clk 0:03:01.1]}
8... Bb7 {[%clk 0:02:48.2]} 9. e4 {[%clk 0:03:00.5]} 9... Na6 {[%clk 0:02:48.9]}
10. e5 {[%clk 0:02:50.1]} 10... Nd7 {[%clk 0:02:48.5]} 11. a3 {[%clk 0:02:46.7]}
11... c5 {[%clk 0:02:47.1]} 12. cxd5 {[%clk 0:02:45.7]} 12... exd5 {[%clk
0:02:45.9]} 13. dxc5 {[%clk 0:02:28.6]} 13... bxc5 {[%clk 0:02:46.8]} 14. b3
{[%clk 0:02:26.2]} 14... Rc8 {[%clk 0:02:42.3]} 15. Bb2 {[%clk 0:02:25.5]} 15...
Nc7 {[%clk 0:02:40.5]} 16. Rac1 {[%clk 0:02:21.7]} 16... Ne6 {[%clk 0:02:39.7]}
17. Rfd1 {[%clk 0:02:17.1]} 17... Qb6 {[%clk 0:02:19.3]} 18. Nf1 {[%clk
0:02:07.6]} 18... d4 {[%clk 0:02:06.2]} 19. N3d2 {[%clk 0:02:03.6]} 19... Nxe5
{[%clk 0:01:57.2]} 20. Nc4 {[%clk 0:01:58.8]} 20... Nxc4 {[%clk 0:01:55.2]} 21.
Qxc4 {[%clk 0:01:59.7]} 21... Bxg2 {[%clk 0:01:37.5]} 22. Kxg2 {[%clk
0:02:00.6]} 22... Rb8 {[%clk 0:01:38]} 23. Rd3 {[%clk 0:01:41.7]} 23... Ng5
{[%clk 0:01:38.1]} 24. Nd2 {[%clk 0:01:22.1]} 24... Rfe8 {[%clk 0:01:21.8]} 25.
h4 {[%clk 0:01:20.3]} 25... Qb7+ {[%clk 0:01:19.5]} 26. Kh2 {[%clk 0:01:14.1]}
26... Ne6 {[%clk 0:01:14.9]} 27. Nf3 {[%clk 0:00:55.2]} 27... Bf6 {[%clk
0:00:52.9]} 28. Re1 {[%clk 0:00:38.1]} 28... a5 {[%clk 0:00:53.2]} 29. Ba1
{[%clk 0:00:34.3]} 29... Qc7 {[%clk 0:00:29.7]} 30. Nd2 {[%clk 0:00:23.7]} 30...
Bxh4 {[%clk 0:00:25.2]} 31. Bxd4 {[%clk 0:00:12.5]} 31... Bxg3+ {[%clk
0:00:01.7]} 32. fxg3 {[%clk 0:00:13.4]} 1-0

[Event "Early-Titled-Tuesday-Blitz-February-06-2024"]
[Site "Chess.com"]
[Date "2024.02.06"]
[Round "6"]
[White "N_I_Chess"]
[Black "LangesNasenhaar"]
[Result "0-1"]
[WhiteElo "2337"]
[BlackElo "2497"]
[TimeControl "180+1"]
[EndTime "9:07:23 PST"]
[Termination "LangesNasenhaar won on time"]

1. d4 {[%clk 0:03:00.9]} 1... g6 {[%clk 0:02:59.8]} 2. c4 {[%clk 0:02:54.8]}
2... Bg7 {[%clk 0:02:59.9]} 3. Nc3 {[%clk 0:02:54.3]} 3... c5 {[%clk 0:03:00.2]}
4. d5 {[%clk 0:02:53.8]} 4... Bxc3+ {[%clk 0:02:59.2]} 5. bxc3 {[%clk
0:02:54.7]} 5... f5 {[%clk 0:02:59.6]} 6. h4 {[%clk 0:02:38.1]} 6... Nf6 {[%clk
0:02:59.1]} 7. Bg5 {[%clk 0:02:23.3]} 7... d6 {[%clk 0:02:56.9]} 8. e3 {[%clk
0:02:20.2]} 8... Nbd7 {[%clk 0:02:50]} 9. h5 {[%clk 0:02:07]} 9... Rg8 {[%clk
0:02:49.6]} 10. hxg6 {[%clk 0:01:43.1]} 10... hxg6 {[%clk 0:02:50.5]} 11. f3
{[%clk 0:01:37.6]} 11... Qa5 {[%clk 0:02:50.1]} 12. Qc2 {[%clk 0:01:28.1]} 12...
Ne5 {[%clk 0:02:44.8]} 13. Nh3 {[%clk 0:01:16.8]} 13... Bd7 {[%clk 0:02:43.5]}
14. Rb1 {[%clk 0:00:58.5]} 14... O-O-O {[%clk 0:02:42.2]} 15. Nf4 {[%clk
0:00:52.3]} 15... Rh8 {[%clk 0:02:16.6]} 16. Rxh8 {[%clk 0:00:49.5]} 16... Rxh8
{[%clk 0:02:17.5]} 17. Kd2 {[%clk 0:00:46.1]} 17... Rh1 {[%clk 0:02:00.2]} 18.
Be2 {[%clk 0:00:35.9]} 18... Rxb1 {[%clk 0:01:52.8]} 19. Qxb1 {[%clk 0:00:36.8]}
19... Nf7 {[%clk 0:01:42]} 20. Bxf6 {[%clk 0:00:32.1]} 20... exf6 {[%clk
0:01:42.1]} 21. Nxg6 {[%clk 0:00:31.3]} 21... Kc7 {[%clk 0:01:38.6]} 22. Bd3
{[%clk 0:00:21.5]} 22... Ne5 {[%clk 0:01:24.9]} 23. Nxe5 {[%clk 0:00:20.7]}
23... fxe5 {[%clk 0:01:25.2]} 24. Ke2 {[%clk 0:00:15.7]} 24... f4 {[%clk
0:01:23.4]} 25. exf4 {[%clk 0:00:15.9]} 25... exf4 {[%clk 0:01:23.8]} 26. Kf2
{[%clk 0:00:15.6]} 26... Qxc3 {[%clk 0:01:20.6]} 27. Qc2 {[%clk 0:00:14.6]}
27... Qd4+ {[%clk 0:01:18.9]} 28. Kf1 {[%clk 0:00:12.8]} 28... a5 {[%clk
0:01:05.7]} 29. Qd2 {[%clk 0:00:11.1]} 29... Kb6 {[%clk 0:00:59.7]} 30. Qc2
{[%clk 0:00:07.9]} 30... a4 {[%clk 0:00:57.1]} 31. Be2 {[%clk 0:00:07.4]} 31...
Ka5 {[%clk 0:00:50.3]} 32. Qb1 {[%clk 0:00:06]} 32... b6 {[%clk 0:00:40.9]} 33.
Qh7 {[%clk 0:00:05.9]} 33... Bc8 {[%clk 0:00:28.1]} 34. Qa7+ {[%clk 0:00:02.6]}
34... Ba6 {[%clk 0:00:28.7]} 35. Qc7 {[%clk 0:00:01.6]} 35... Qe5 {[%clk
0:00:24.4]} 0-1

[Event "Early-Titled-Tuesday-Blitz-February-06-2024"]
[Site "Chess.com"]
[Date "2024.02.06"]
[Round "6"]
[White "APOKALIPSA13"]
[Black "Binary010"]
[Result "0-1"]
[WhiteElo "2226"]
[BlackElo "2857"]
[TimeControl "180+1"]
[EndTime "9:07:26 PST"]
[Termination "Binary010 won by checkmate"]

1. e4 {[%clk 0:03:00]} 1... c5 {[%clk 0:02:58.8]} 2. Nf3 {[%clk 0:02:59.8]} 2...
d6 {[%clk 0:02:59.3]} 3. d4 {[%clk 0:03:00.7]} 3... cxd4 {[%clk 0:03:00.2]} 4.
Nxd4 {[%clk 0:03:01.2]} 4... Nf6 {[%clk 0:03:00.9]} 5. Nc3 {[%clk 0:03:01.7]}
5... a6 {[%clk 0:03:00.9]} 6. Rg1 {[%clk 0:03:01.9]} 6... h5 {[%clk 0:02:56.5]}
7. h3 {[%clk 0:03:01.8]} 7... g6 {[%clk 0:02:54.6]} 8. g4 {[%clk 0:03:01.7]}
8... hxg4 {[%clk 0:02:53.2]} 9. hxg4 {[%clk 0:03:02.6]} 9... Bg7 {[%clk
0:02:53.7]} 10. Be3 {[%clk 0:02:59.9]} 10... Nc6 {[%clk 0:02:41.7]} 11. Nb3
{[%clk 0:02:57.7]} 11... b5 {[%clk 0:02:32.9]} 12. f3 {[%clk 0:02:57]} 12... Be6
{[%clk 0:02:14]} 13. Qd2 {[%clk 0:02:56.1]} 13... Rc8 {[%clk 0:02:10.9]} 14. Nd4
{[%clk 0:02:52.7]} 14... Nxd4 {[%clk 0:02:04.3]} 15. Bxd4 {[%clk 0:02:53.6]}
15... Kf8 {[%clk 0:01:58.7]} 16. O-O-O {[%clk 0:02:34.5]} 16... b4 {[%clk
0:01:57.5]} 17. Nd5 {[%clk 0:02:25.4]} 17... Bxd5 {[%clk 0:01:55.1]} 18. exd5
{[%clk 0:02:25.4]} 18... a5 {[%clk 0:01:30.9]} 19. Bb5 {[%clk 0:02:05.9]} 19...
Qc7 {[%clk 0:01:24.3]} 20. Bc6 {[%clk 0:02:04]} 20... Rh3 {[%clk 0:00:40.1]} 21.
Qd3 {[%clk 0:01:52.8]} 21... e5 {[%clk 0:00:32.8]} 22. Bf2 {[%clk 0:01:46.5]}
22... e4 {[%clk 0:00:32]} 23. Qb5 {[%clk 0:01:39.4]} 23... Rb8 {[%clk
0:00:27.3]} 24. Qc4 {[%clk 0:01:33.9]} 24... Rxf3 {[%clk 0:00:13.9]} 25. Bd4
{[%clk 0:01:33.8]} 25... Qe7 {[%clk 0:00:09.3]} 26. Rdf1 {[%clk 0:01:28.9]}
26... Rxf1+ {[%clk 0:00:08.8]} 27. Rxf1 {[%clk 0:01:29.8]} 27... Nxg4 {[%clk
0:00:08.5]} 28. Rf4 {[%clk 0:01:23.1]} 28... f5 {[%clk 0:00:07.2]} 29. Bxg7+
{[%clk 0:01:16.2]} 29... Kxg7 {[%clk 0:00:07.4]} 30. Ba4 {[%clk 0:01:12.4]}
30... Qg5 {[%clk 0:00:05.7]} 31. Qd4+ {[%clk 0:01:10.3]} 31... Kh6 {[%clk
0:00:05.1]} 32. Qd2 {[%clk 0:01:04.8]} 32... e3 {[%clk 0:00:05.5]} 33. Qd4
{[%clk 0:01:04.6]} 33... e2 {[%clk 0:00:05.6]} 34. Kd2 {[%clk 0:01:03.8]} 34...
Re8 {[%clk 0:00:05.3]} 35. Ke1 {[%clk 0:01:00.3]} 35... Ne5 {[%clk 0:00:03.8]}
36. Rh4+ {[%clk 0:00:58.4]} 36... Kg7 {[%clk 0:00:04.2]} 37. Kxe2 {[%clk
0:00:58.4]} 37... Qg2+ {[%clk 0:00:03.9]} 38. Kd1 {[%clk 0:00:55.2]} 38... Qf1+
{[%clk 0:00:03.7]} 39. Kd2 {[%clk 0:00:54.9]} 39... Kg8 {[%clk 0:00:04.1]} 40.
Rf4 {[%clk 0:00:49.1]} 40... Nf3+ {[%clk 0:00:04.1]} 41. Rxf3 {[%clk 0:00:49.2]}
41... Qxf3 {[%clk 0:00:04.7]} 42. Bb5 {[%clk 0:00:48.4]} 42... Qe4 {[%clk
0:00:03.9]} 43. Qf6 {[%clk 0:00:41.2]} 43... Qe3+ {[%clk 0:00:04]} 44. Kd1
{[%clk 0:00:40.2]} 44... Qe1# {[%clk 0:00:04.9]} 0-1

[Event "Early-Titled-Tuesday-Blitz-February-06-2024"]
[Site "Chess.com"]
[Date "2024.02.06"]
[Round "6"]
[White "chegueps"]
[Black "adotand"]
[Result "0-1"]
[WhiteElo "2649"]
[BlackElo "2896"]
[TimeControl "180+1"]
[EndTime "9:07:27 PST"]
[Termination "adotand won by resignation"]

1. e4 {[%clk 0:03:00.9]} 1... c5 {[%clk 0:03:00.1]} 2. Nf3 {[%clk 0:02:56.3]}
2... Nc6 {[%clk 0:03:00.6]} 3. Bb5 {[%clk 0:02:56.6]} 3... e6 {[%clk 0:03:01.2]}
4. Bxc6 {[%clk 0:02:55.8]} 4... bxc6 {[%clk 0:03:01.4]} 5. d3 {[%clk 0:02:56.7]}
5... Qc7 {[%clk 0:03:01.1]} 6. e5 {[%clk 0:02:45]} 6... f6 {[%clk 0:02:56.2]} 7.
Qe2 {[%clk 0:02:42.4]} 7... Ne7 {[%clk 0:02:54.6]} 8. Na3 {[%clk 0:02:36.9]}
8... Ng6 {[%clk 0:02:51.9]} 9. Nc4 {[%clk 0:02:36.5]} 9... Ba6 {[%clk
0:02:52.5]} 10. exf6 {[%clk 0:02:15.4]} 10... gxf6 {[%clk 0:02:53.4]} 11. g3
{[%clk 0:01:48.1]} 11... O-O-O {[%clk 0:02:49.5]} 12. Bd2 {[%clk 0:01:46.5]}
12... Re8 {[%clk 0:02:48.6]} 13. Ba5 {[%clk 0:01:43.7]} 13... Qb8 {[%clk
0:02:45.7]} 14. O-O-O {[%clk 0:01:42.9]} 14... d5 {[%clk 0:02:44]} 15. Ne3
{[%clk 0:01:41.2]} 15... Bd6 {[%clk 0:02:44.2]} 16. h4 {[%clk 0:01:38.9]} 16...
h5 {[%clk 0:02:42.7]} 17. Kb1 {[%clk 0:01:29.4]} 17... Kb7 {[%clk 0:02:42.5]}
18. c4 {[%clk 0:01:25.7]} 18... Ka8 {[%clk 0:02:42.5]} 19. Qc2 {[%clk
0:01:24.5]} 19... d4 {[%clk 0:02:35.8]} 20. Nf1 {[%clk 0:01:19.4]} 20... e5
{[%clk 0:02:34]} 21. N1d2 {[%clk 0:01:18.6]} 21... Bc8 {[%clk 0:02:30.7]} 22.
Ne4 {[%clk 0:01:17.4]} 22... Be7 {[%clk 0:02:30.5]} 23. Qa4 {[%clk 0:01:16.8]}
23... Qb7 {[%clk 0:02:28]} 24. Nfd2 {[%clk 0:01:16.6]} 24... f5 {[%clk
0:02:22.5]} 25. Ng5 {[%clk 0:01:16.2]} 25... Bd6 {[%clk 0:02:17.1]} 26. Ka1
{[%clk 0:01:10.8]} 26... Re7 {[%clk 0:02:07.6]} 27. Rb1 {[%clk 0:01:08.6]} 27...
Qa6 {[%clk 0:02:03.1]} 28. Qa3 {[%clk 0:00:52.7]} 28... Nf8 {[%clk 0:01:51.9]}
29. Rhe1 {[%clk 0:00:47.6]} 29... Nd7 {[%clk 0:01:50.2]} 30. f4 {[%clk
0:00:41.9]} 30... Rhe8 {[%clk 0:01:48]} 31. fxe5 {[%clk 0:00:38.3]} 31... Bxe5
{[%clk 0:01:48.5]} 32. Nb3 {[%clk 0:00:29]} 32... Bd6 {[%clk 0:01:48.3]} 33. Nf7
{[%clk 0:00:21.7]} 33... Rxe1 {[%clk 0:01:41.8]} 34. Nxd6 {[%clk 0:00:21.6]}
34... Rxb1+ {[%clk 0:01:07]} 35. Kxb1 {[%clk 0:00:22.5]} 35... Re5 {[%clk
0:01:07.6]} 36. Qa4 {[%clk 0:00:16.8]} 36... Re3 {[%clk 0:00:51.8]} 37. Qa3
{[%clk 0:00:13.6]} 37... Rxd3 {[%clk 0:00:51.6]} 38. Nxc5 {[%clk 0:00:13.6]}
38... Rxa3 {[%clk 0:00:49.2]} 39. Nxa6 {[%clk 0:00:11.1]} 39... Rxa5 {[%clk
0:00:47.6]} 40. Nb4 {[%clk 0:00:08.5]} 40... Bb7 {[%clk 0:00:44.2]} 41. Nd3
{[%clk 0:00:07.9]} 41... c5 {[%clk 0:00:38.2]} 42. Nxf5 {[%clk 0:00:06.1]} 42...
Ra6 {[%clk 0:00:38.9]} 43. Ng7 {[%clk 0:00:05.7]} 43... Be4 {[%clk 0:00:37.6]}
44. Nxh5 {[%clk 0:00:06.6]} 0-1